bitfinex/quotes_BTCUSD_20250221
["timestamp","ask_amount","ask_price","bid_price","bid_amount"]
[1740114231074,0.6466498,98335.0,98334.0,2.2453364]
[1740114239257,0.74329065,98335.0,98334.0,2.2453364]
[1740114239809,0.86593634,98335.0,98334.0,2.2453364]
[1740114240037,0.89615644,98335.0,98334.0,2.2453364]
[1740114240291,0.89515644,98335.0,98334.0,2.2453364]
[1740114240767,0.90115644,98335.0,98334.0,2.2453364]
[1740114241078,0.90615644,98335.0,98334.0,2.2453364]
[1740114241304,0.87593634,98335.0,98334.0,2.2453364]
[1740114241714,0.88193634,98335.0,98334.0,2.2453364]
[1740114243043,0.86493634,98335.0,98334.0,2.2453364]
[1740114243239,0.87193634,98335.0,98334.0,2.2453364]
[1740114243442,0.87793634,98335.0,98334.0,2.2453364]
[1740114243850,0.88393634,98335.0,98334.0,2.2453364]
[1740114250669,0.80183634,98335.0,98334.0,2.2453364]
[1740114260370,0.80183634,98335.0,98334.0,2.3053364]
[1740114263392,0.83205871,98335.0,98334.0,2.3053364]
[1740114269199,0.83207174,98335.0,98334.0,2.3053364]
[1740114277386,0.70942605,98335.0,98334.0,2.3053364]
[1740114283170,0.81207174,98335.0,98334.0,2.3053364]
[1740114283485,0.83207174,98335.0,98334.0,2.3053364]
[1740114289161,0.81207174,98335.0,98334.0,2.3053364]
[1740114289920,0.53688705,98335.0,98334.0,2.3053364]
[1740114290059,0.70942605,98335.0,98334.0,2.3053364]
[1740114296323,0.68942605,98335.0,98334.0,2.3053364]
[1740114296533,0.70942605,98335.0,98334.0,2.3053364]
[1740114297306,0.6948852,98335.0,98334.0,2.3053364]
[1740114301893,0.6646498,98335.0,98334.0,2.3053364]
[1740114302637,0.6646498,98335.0,98334.0,2.3870364]
[1740114302837,0.5121108,98335.0,98334.0,2.4342364]
[1740114303061,0.6646498,98335.0,98334.0,2.4342364]
[1740114303260,0.5121108,98335.0,98334.0,2.4342364]
[1740114304086,0.5051108,98335.0,98334.0,2.4342364]
[1740114305087,0.4931108,98335.0,98334.0,2.4342364]
[1740114305281,0.5021108,98335.0,98334.0,2.4342364]
[1740114305485,0.6546498,98335.0,98334.0,2.4342364]
[1740114316929,0.5021108,98335.0,98334.0,2.4342364]
[1740114324475,0.5021108,98335.0,98334.0,2.5867774]
[1740114324906,0.3521108,98335.0,98334.0,2.5867774]
[1740114325147,0.3521108,98335.0,98334.0,2.4342364]
[1740114331460,0.36224092,98335.0,98334.0,2.4342364]
[1740114331670,0.36520421,98335.0,98334.0,2.4342364]
[1740114332438,0.35507409,98335.0,98334.0,2.4342364]
[1740114332633,0.35507409,98335.0,98334.0,2.5867774]
[1740114333667,0.35107409,98335.0,98334.0,2.5867774]
[1740114334262,0.34607409,98335.0,98334.0,2.5867774]
[1740114334644,0.34607409,98335.0,98334.0,2.5897774]
[1740114335039,0.34607409,98335.0,98334.0,2.5887774]
[1740114335549,0.34607409,98335.0,98334.0,2.69342309]
[1740114335983,0.34607409,98335.0,98334.0,2.69142309]
[1740114336184,0.34607409,98335.0,98334.0,2.69342309]
[1740114336824,0.34607409,98335.0,98334.0,2.69142309]
[1740114336982,0.34607409,98335.0,98334.0,2.69342309]
[1740114340099,0.32607409,98335.0,98334.0,2.69342309]
[1740114340294,0.34607409,98335.0,98334.0,2.69342309]
[1740114340809,0.32607409,98335.0,98334.0,2.69342309]
[1740114341176,0.34607409,98335.0,98334.0,2.69142309]
[1740114341362,0.32607409,98335.0,98334.0,2.69142309]
[1740114341804,0.34607409,98335.0,98334.0,2.69342309]
[1740114341981,0.32607409,98335.0,98334.0,2.69342309]
[1740114342587,0.34607409,98335.0,98334.0,2.69342309]
[1740114343381,0.32607409,98335.0,98334.0,2.69342309]
[1740114343576,0.34607409,98335.0,98334.0,2.69342309]
[1740114344529,0.32607409,98335.0,98334.0,2.69342309]
[1740114344733,0.34607409,98335.0,98334.0,2.69342309]
[1740114345863,0.32607409,98335.0,98334.0,2.69342309]
[1740114346221,0.34607409,98335.0,98334.0,2.69342309]
[1740114346659,0.32607409,98335.0,98334.0,2.69342309]
[1740114346865,0.34607409,98335.0,98334.0,2.69342309]
[1740114347935,0.32607409,98335.0,98334.0,2.69342309]
[1740114348137,0.34607409,98335.0,98334.0,2.69342309]
[1740114348571,0.32607409,98335.0,98334.0,2.69342309]
[1740114348995,0.34607409,98335.0,98334.0,2.69342309]
[1740114349375,0.32607409,98335.0,98334.0,2.69342309]
[1740114349944,0.34607409,98335.0,98334.0,2.69342309]
[1740114361200,0.34607409,98335.0,98334.0,2.63342309]
[1740114361639,0.3431108,98335.0,98334.0,2.63342309]
[1740114361972,0.34630153,98335.0,98334.0,2.63342309]
[1740114372462,0.34630153,98335.0,98334.0,2.58622309]
[1740114373844,0.34630153,98335.0,98334.0,2.51176309]
[1740114378350,0.34630153,98335.0,98334.0,2.35922209]
[1740114379422,0.34630153,98335.0,98334.0,2.51176309]
[1740114379724,0.34630153,98335.0,98334.0,2.50776309]
[1740114380055,0.34630153,98335.0,98334.0,2.50976309]
[1740114380268,0.34630153,98335.0,98334.0,2.35722209]
[1740114381106,0.34630153,98335.0,98334.0,2.35922209]
[1740114381447,0.34630153,98335.0,98334.0,2.50976309]
[1740114381643,0.34630153,98335.0,98334.0,2.51176309]
[1740114381839,0.34630153,98335.0,98334.0,2.35922209]
[1740114382825,0.34630153,98335.0,98334.0,2.35722209]
[1740114383229,0.34630153,98335.0,98334.0,2.51176309]
[1740114383493,0.34630153,98335.0,98334.0,2.50976309]
[1740114384923,0.34630153,98335.0,98334.0,2.51176309]
[1740114385459,0.34630153,98335.0,98334.0,2.35922209]
[1740114385850,0.34630153,98335.0,98334.0,2.51176309]
[1740114386540,0.34630153,98335.0,98334.0,2.35922209]
[1740114386955,0.49884053,98335.0,98334.0,2.35922209]
[1740114387165,0.34630153,98335.0,98334.0,2.35922209]
[1740114387870,0.34630153,98335.0,98334.0,2.2493364]
[1740114388070,0.34630153,98335.0,98334.0,2.2565764]
[1740114389039,0.34630153,98335.0,98334.0,2.2545764]
[1740114389242,0.34630153,98335.0,98334.0,2.2555764]
[1740114389442,0.34630153,98335.0,98334.0,2.2535764]
[1740114389642,0.34630153,98335.0,98334.0,2.2545764]
[1740114396095,0.35667542,98335.0,98334.0,2.2545764]
[1740114396722,0.34630153,98335.0,98334.0,2.2545764]
[1740114407941,0.3462272,98335.0,98334.0,2.2545764]
[1740114409934,0.3462272,98335.0,98334.0,2.4071174]
[1740114410352,0.3462272,98335.0,98334.0,2.2545764]
[1740114413418,0.3462272,98335.0,98334.0,2.2473364]
[1740114413419,0.4987662,98335.0,98334.0,2.2473364]
[1740114413627,0.6487662,98335.0,98334.0,2.2473364]
[1740114414042,0.7284662,98335.0,98334.0,2.2473364]
[1740114414461,0.7783662,98335.0,98334.0,2.2473364]
[1740114414578,0.7783662,98335.0,98334.0,2.2463364]
[1740114414779,0.7783662,98335.0,98334.0,2.2453364]
[1740114415221,0.7793662,98335.0,98334.0,2.2453364]
[1740114416094,0.7803662,98335.0,98334.0,2.2453364]
[1740114416459,0.7783662,98335.0,98334.0,2.2453364]
[1740114417047,0.7813662,98335.0,98334.0,2.2453364]
[1740114417157,0.7853662,98335.0,98334.0,2.2453364]
[1740114419846,0.79288294,98335.0,98334.0,2.2453364]
[1740114423100,0.89552863,98335.0,98334.0,2.2453364]
[1740114423309,0.96027168,98335.0,98334.0,2.2453364]
[1740114424253,0.95727168,98335.0,98334.0,2.2453364]
[1740114424451,0.96427168,98335.0,98334.0,2.2453364]
[1740114425131,0.96027168,98335.0,98334.0,2.2453364]
[1740114425454,0.96727168,98335.0,98334.0,2.2453364]
[1740114425980,0.95327168,98335.0,98334.0,2.2453364]
[1740114426359,0.96727168,98335.0,98334.0,2.2453364]
[1740114429331,0.93706948,98335.0,98334.0,2.2453364]
[1740114429874,0.96722097,98335.0,98334.0,2.2453364]
[1740114430076,0.93706948,98335.0,98334.0,2.2453364]
[1740114441338,0.96722155,98335.0,98334.0,2.2357129]
[1740114442075,0.96022155,98335.0,98334.0,2.2357129]
[1740114442618,1.01761842,98335.0,98334.0,2.2357129]
[1740114442989,1.01061842,98335.0,98334.0,2.2357129]
[1740114443392,1.02461842,98335.0,98334.0,2.2357129]
[1740114444439,1.04743983,98335.0,98334.0,2.2357129]
[1740114446253,0.69502776,98335.0,98334.0,0.40104741]
[1740114446417,0.69502776,98335.0,98334.0,0.25782948]
[1740114446623,0.02,98295.0,98294.0,0.0752]
[1740114446824,0.494901,98295.0,98294.0,0.0752]
[1740114447026,0.4979509,98295.0,98294.0,0.0752]
[1740114447231,0.50830157,98295.0,98294.0,0.0752]
[1740114447405,0.35570057,98295.0,98294.0,0.0752]
[1740114448019,0.35570057,98295.0,98294.0,0.07529691]
[1740114448856,0.33870057,98295.0,98294.0,0.07529691]
[1740114449192,0.36070057,98295.0,98294.0,0.07529691]
[1740114449330,0.35770057,98295.0,98294.0,0.07529691]
[1740114449537,0.35870057,98295.0,98294.0,0.07529691]
[1740114449736,0.36070057,98295.0,98294.0,0.07529691]
[1740114450342,0.35770057,98295.0,98294.0,0.07529691]
[1740114451034,0.37450188,98295.0,98294.0,0.07529691]
[1740114451259,0.37650188,98295.0,98294.0,0.07529691]
[1740114451472,0.37450188,98295.0,98294.0,0.07529691]
[1740114451693,0.37750188,98295.0,98294.0,0.07529691]
[1740114452116,0.37450188,98295.0,98294.0,0.07529691]
[1740114452339,0.37250188,98295.0,98294.0,0.07529691]
[1740114452858,0.37750188,98295.0,98294.0,0.07529691]
[1740114453550,0.36070057,98295.0,98294.0,0.07529691]
[1740114453754,0.51330157,98295.0,98294.0,0.07529691]
[1740114453956,0.36070057,98295.0,98294.0,0.07529691]
[1740114454692,0.51330157,98295.0,98294.0,0.07529691]
[1740114454897,0.36070057,98295.0,98294.0,0.07529691]
[1740114455825,0.37750469,98295.0,98294.0,0.07529691]
[1740114456769,0.36715402,98295.0,98294.0,0.07529691]
[1740114456968,0.34842525,98295.0,98294.0,0.22789991]
[1740114457171,0.36842525,98295.0,98294.0,0.07529691]
[1740114457514,0.36642525,98295.0,98294.0,0.07529691]
[1740114458042,0.36342525,98295.0,98294.0,0.22789991]
[1740114458386,0.34962113,98295.0,98294.0,0.07529691]
[1740114458780,0.34662113,98295.0,98294.0,0.07529691]
[1740114462035,0.34662113,98295.0,98294.0,0.22789991]
[1740114463145,0.32662113,98295.0,98294.0,0.22789991]
[1740114463513,0.34662113,98295.0,98294.0,0.22789991]
[1740114491777,0.34662113,98295.0,98294.0,0.15269991]
[1740114502464,0.34908589,98295.0,98294.0,0.15269991]
[1740114502669,0.36592395,98295.0,98294.0,0.15269991]
[1740114508198,0.36592395,98295.0,98294.0,9.691e-05]
[1740114508401,0.35913806,98295.0,98294.0,9.691e-05]
[1740114508602,0.36514666,98295.0,98294.0,0.15269991]
[1740114508875,0.36514666,98295.0,98294.0,9.691e-05]
[1740114511043,0.36614666,98295.0,98294.0,9.691e-05]
[1740114511245,0.36714666,98295.0,98294.0,0.15269991]
[1740114511764,0.36614666,98295.0,98294.0,0.15269991]
[1740114511968,0.36814666,98295.0,98294.0,0.15269991]
[1740114512321,0.36714666,98295.0,98294.0,0.15269991]
[1740114512538,0.36514666,98295.0,98294.0,0.15269991]
[1740114512743,0.36614666,98295.0,98294.0,0.15269991]
[1740114516005,0.36514666,98295.0,98294.0,0.15269991]
[1740114516408,0.34514666,98295.0,98294.0,0.15269991]
[1740114516603,0.36514666,98295.0,98294.0,0.15269991]
[1740114516980,0.34514666,98295.0,98294.0,0.15269991]
[1740114517181,0.36514666,98295.0,98294.0,0.15269991]
[1740114517381,0.34514666,98295.0,98294.0,0.15269991]
[1740114517642,0.36514666,98295.0,98294.0,0.15269991]
[1740114521335,0.3483086,98295.0,98294.0,0.15269991]
[1740114529427,0.3483086,98295.0,98294.0,0.23469991]
[1740114539731,0.3483086,98295.0,98294.0,0.3373456]
[1740114546561,0.3283086,98295.0,98294.0,0.3373456]
[1740114547175,0.0260086,98295.0,98294.0,0.3373456]
[1740114547606,0.02,98298.0,98297.0,0.152598]
[1740114547784,0.02,98298.0,98297.0,1.2800189]
[1740114557985,0.03682832,98298.0,98297.0,1.2800189]
[1740114559184,0.02,98298.0,98297.0,1.2800189]
[1740114573325,0.02,98298.0,98297.0,1.3298189]
[1740114573528,0.02,98298.0,98297.0,1.3370189]
[1740114573706,0.02,98298.0,98297.0,2.8370189]
[1740114574372,0.02,98298.0,98297.0,1.3370189]
[1740114577919,0.02,98298.0,98297.0,0.31224369]
[1740114581831,0.3223,98312.0,98297.0,0.15964569]
[1740114582006,0.02,98303.0,98302.0,0.25699517]
[1740114582206,0.3223,98312.0,98302.0,0.10264569]
[1740114582419,0.02,98304.0,98303.0,0.25523469]
[1740114582563,0.3423,98312.0,98311.0,0.152577]
[1740114584001,0.3433,98312.0,98311.0,0.152577]
[1740114584210,0.3233,98312.0,98311.0,0.152577]
[1740114584424,0.3423,98312.0,98311.0,0.152577]
[1740114584591,0.3433,98312.0,98311.0,0.25522269]
[1740114585110,0.3423,98312.0,98311.0,0.25522269]
[1740114590468,0.34888531,98312.0,98311.0,0.25522269]
[1740114591565,0.34888531,98312.0,98311.0,0.26242269]
[1740114595485,0.32888531,98312.0,98311.0,0.26242269]
[1740114595716,0.34888531,98312.0,98311.0,0.26242269]
[1740114595916,0.34887709,98312.0,98311.0,0.26242269]
[1740114605692,0.36571887,98312.0,98311.0,0.25522269]
[1740114605845,0.02,98311.0,98293.0,0.02]
[1740114606050,0.02,98302.0,98301.0,0.31330169]
[1740114606461,0.02,98302.0,98301.0,0.10264569]
[1740114606663,0.02,98295.0,98294.0,0.20356691]
[1740114606840,0.02,98295.0,98294.0,0.3015126]
[1740114608126,0.03684178,98295.0,98294.0,0.3015126]
[1740114608511,0.01684178,98295.0,98294.0,0.3015126]
[1740114608688,0.01684178,98295.0,98294.0,0.3771126]
[1740114609271,0.02,98300.0,98299.0,0.152595]
[1740114609471,0.02,98304.0,98303.0,0.152589]
[1740114609694,0.02,98304.0,98303.0,1.2800099]
[1740114615611,0.02,98308.0,98304.0,0.4069]
[1740114615837,0.02,98311.0,98310.0,0.152578]
[1740114615947,0.02,98311.0,98310.0,0.25522369]
[1740114616352,0.3423,98312.0,98310.0,0.25522369]
[1740114616554,0.3423,98312.0,98311.0,0.10264569]
[1740114616764,0.3223,98312.0,98311.0,0.10264569]
[1740114617790,0.3223,98312.0,98311.0,0.11265711]
[1740114618804,0.0009933,98321.0,98311.0,0.11265711]
[1740114618805,0.0209933,98321.0,98311.0,0.11265711]
[1740114619125,0.0009933,98321.0,98320.0,0.152563]
[1740114619328,0.02,98325.0,98324.0,0.152556]
[1740114619671,0.02,98325.0,98324.0,0.26244169]
[1740114620407,0.3223,98329.0,98328.0,0.15255]
[1740114620606,0.34234331,98329.0,98328.0,0.15255]
[1740114622028,0.34434331,98329.0,98328.0,0.15255]
[1740114622423,0.32434331,98329.0,98328.0,0.15255]
[1740114622623,0.34434331,98329.0,98328.0,0.15355]
[1740114626437,0.32434331,98329.0,98328.0,0.15355]
[1740114626828,0.34434331,98329.0,98328.0,0.15355]
[1740114628566,0.32434331,98329.0,98328.0,0.15355]
[1740114628999,0.32434331,98329.0,98328.0,0.25619569]
[1740114630469,0.00204331,98329.0,98328.0,0.25619569]
[1740114631891,0.00965105,98329.0,98328.0,0.25619569]
[1740114633519,0.00204331,98329.0,98328.0,0.25619569]
[1740114635464,0.00547184,98329.0,98328.0,0.25619569]
[1740114637980,0.01307765,98329.0,98328.0,0.25619569]
[1740114638969,0.01307765,98329.0,98328.0,0.33139569]
[1740114639725,0.01392845,98329.0,98328.0,0.33139569]
[1740114640487,0.01325468,98329.0,98328.0,0.33139569]
[1740114642222,0.01325468,98329.0,98328.0,0.33859569]
[1740114645777,0.01188514,98329.0,98328.0,0.33759569]
[1740114646260,0.01188514,98329.0,98328.0,0.34159569]
[1740114646666,0.01188514,98329.0,98328.0,0.34259569]
[1740114648359,0.00427933,98329.0,98328.0,0.34259569]
[1740114661523,3.3e-07,98329.0,98328.0,0.34259569]
[1740114661700,0.00364671,98329.0,98328.0,0.34259569]
[1740114662367,0.00364671,98329.0,98328.0,0.34159569]
[1740114662571,0.00364671,98329.0,98328.0,0.33859569]
[1740114662783,0.00564671,98329.0,98328.0,0.34259569]
[1740114663184,0.00564671,98329.0,98328.0,1.04259569]
[1740114664626,0.00464671,98329.0,98328.0,1.03859569]
[1740114665000,0.00464671,98329.0,98328.0,1.04459569]
[1740114665137,0.00464671,98329.0,98328.0,1.05159569]
[1740114668103,0.00464671,98329.0,98328.0,0.35159569]
[1740114670108,0.00464671,98329.0,98328.0,0.34439569]
[1740114670405,0.00464671,98329.0,98328.0,0.35167569]
[1740114678950,0.00464671,98329.0,98328.0,0.37229871]
[1740114679367,2.63726359,98330.0,98329.0,0.152549]
[1740114679569,2.39181359,98330.0,98329.0,2.61933723]
[1740114679685,1.24037159,98330.0,98329.0,3.31933723]
[1740114679896,1.23612636,98330.0,98329.0,4.81933723]
[1740114680551,1.24158353,98330.0,98329.0,9.44293723]
[1740114680708,1.24002433,98330.0,98329.0,9.44293723]
[1740114681087,1.24002433,98330.0,98329.0,9.39423723]
[1740114681293,1.24002433,98330.0,98329.0,5.28623723]
[1740114681648,1.24002433,98330.0,98329.0,5.30023723]
[1740114682056,1.24002433,98330.0,98329.0,5.29323723]
[1740114682601,1.24002433,98330.0,98329.0,5.30023723]
[1740114683597,1.24002433,98330.0,98329.0,4.92203723]
[1740114685064,1.18477532,98330.0,98329.0,4.92203723]
[1740114685633,1.18477532,98330.0,98329.0,3.44203723]
[1740114685763,1.18477532,98330.0,98329.0,3.27093723]
[1740114685971,1.18477532,98330.0,98329.0,3.19641723]
[1740114686177,1.18477532,98330.0,98329.0,2.0072499]
[1740114689072,1.18477532,98330.0,98329.0,2.02179075]
[1740114689477,1.18477532,98330.0,98329.0,2.10109075]
[1740114690292,1.18477532,98330.0,98329.0,3.60109075]
[1740114690691,1.18477532,98330.0,98329.0,3.75109075]
[1740114691319,1.18477532,98330.0,98329.0,4.77571723]
[1740114691656,1.18477532,98330.0,98329.0,4.84111723]
[1740114697388,1.18964584,98330.0,98329.0,4.84111723]
[1740114698875,1.18964584,98330.0,98329.0,4.82111723]
[1740114709583,1.18964584,98330.0,98329.0,2.77171554]
[1740114718411,1.18964584,98330.0,98329.0,2.77167554]
[1740114718628,1.18964584,98330.0,98329.0,2.72627554]
[1740114721741,1.18964584,98330.0,98329.0,1.22627554]
[1740114722368,1.18964584,98330.0,98329.0,1.14697554]
[1740114727442,1.18964584,98330.0,98329.0,1.13973554]
[1740114727569,1.18964584,98330.0,98329.0,1.14697554]
[1740114729391,1.18544222,98330.0,98329.0,1.14697554]
[1740114729743,1.18544222,98330.0,98329.0,2.64697554]
[1740114731687,1.18544222,98330.0,98329.0,1.14697554]
[1740114733441,1.18544222,98330.0,98329.0,1.94697554]
[1740114735537,1.18544222,98330.0,98329.0,1.79697554]
[1740114735907,1.18930655,98330.0,98329.0,1.78973554]
[1740114736160,1.18930655,98330.0,98329.0,1.79697554]
[1740114736324,1.18930655,98330.0,98329.0,2.49697554]
[1740114737771,1.18930655,98330.0,98329.0,0.98243469]
[1740114738404,1.18930655,98330.0,98329.0,0.28243469]
[1740114780497,1.18930655,98330.0,98329.0,0.27519469]
[1740114780699,1.18930655,98330.0,98329.0,0.28243469]
[1740114800766,1.18930655,98330.0,98329.0,0.31297869]
[1740114812203,1.18930655,98330.0,98329.0,0.28243469]
[1740114835315,1.18930655,98330.0,98329.0,0.28239469]
[1740114849397,1.18930655,98330.0,98329.0,0.98239469]
[1740114850913,1.18930655,98330.0,98329.0,1.06079469]
[1740114851519,1.18930655,98330.0,98329.0,2.56079469]
[1740114856799,1.18930655,98330.0,98329.0,2.60869469]
[1740114857914,1.18930655,98330.0,98329.0,2.62323554]
[1740114860107,1.18930655,98330.0,98329.0,2.77323554]
[1740114860662,1.18540858,98330.0,98329.0,2.77323554]
[1740114860860,1.1896353,98330.0,98329.0,2.77323554]
[1740114866906,1.1896353,98330.0,98329.0,1.27323554]
[1740114867491,1.1896353,98330.0,98329.0,2.72533554]
[1740114868065,1.1896353,98330.0,98329.0,2.57533554]
[1740114868884,1.1896353,98330.0,98329.0,2.49693554]
[1740114870273,1.1896353,98330.0,98329.0,2.48973554]
[1740114870459,1.1896353,98330.0,98329.0,2.49693554]
[1740114873004,1.1896353,98330.0,98329.0,2.72203554]
[1740114873850,1.1896353,98330.0,98329.0,2.71503554]
[1740114874053,1.1896353,98330.0,98329.0,2.70203554]
[1740114874229,1.1896353,98330.0,98329.0,2.71603554]
[1740114875458,1.1896353,98330.0,98329.0,2.70903554]
[1740114875686,1.1896353,98330.0,98329.0,2.00903554]
[1740114875876,1.1896353,98330.0,98329.0,2.01603554]
[1740114876300,1.1896353,98330.0,98329.0,4.60753554]
[1740114877251,1.1896353,98330.0,98329.0,4.62753554]
[1740114877463,1.1896353,98330.0,98329.0,4.60753554]
[1740114877668,1.18633548,98330.0,98329.0,4.62753554]
[1740114878096,1.18633548,98330.0,98329.0,4.67433554]
[1740114878302,1.18633548,98330.0,98329.0,4.65433554]
[1740114878522,1.18633548,98330.0,98329.0,5.35433554]
[1740114882136,1.17450404,98330.0,98329.0,5.35433554]
[1740114886593,0.32476004,98330.0,98329.0,5.35433554]
[1740114886745,4e-08,98330.0,98329.0,5.35433554]
[1740114886926,0.00731522,98330.0,98329.0,2.76283554]
[1740114887138,1.0404,98332.0,98331.0,0.31708585]
[1740114887335,1.0404,98332.0,98331.0,8.28047483]
[1740114887821,1.0404,98332.0,98331.0,9.78047483]
[1740114888430,1.0404,98332.0,98331.0,10.28047483]
[1740114888803,1.0404,98332.0,98331.0,10.50879483]
[1740114889153,1.0404,98332.0,98331.0,10.51579483]
[1740114889554,1.0404,98332.0,98331.0,10.52279483]
[1740114893237,1.0404,98332.0,98331.0,10.54318997]
[1740114893673,0.03351201,98332.0,98331.0,10.64058997]
[1740114893872,1.21326401,98333.0,98332.0,0.41448485]
[1740114894072,1.21326401,98333.0,98332.0,6.22672054]
[1740114894309,1.21992481,98333.0,98332.0,6.27402054]
[1740114894631,1.21332481,98333.0,98332.0,6.27402054]
[1740114895276,1.21332481,98333.0,98332.0,7.77402054]
[1740114896309,1.21332481,98333.0,98332.0,7.77502054]
[1740114896682,1.21332481,98333.0,98332.0,7.78322054]
[1740114901647,1.21332481,98333.0,98332.0,2.77363054]
[1740114902045,1.21332481,98333.0,98332.0,7.78322054]
[1740114903145,1.21332481,98333.0,98332.0,7.80369743]
[1740114903873,1.21332481,98333.0,98332.0,7.83537525]
[1740114906914,1.03240254,98333.0,98332.0,7.80369743]
[1740114907333,1.03325324,98333.0,98332.0,7.80369743]
[1740114907491,1.03325324,98333.0,98332.0,7.83536229]
[1740114907694,1.03325324,98333.0,98332.0,7.80369743]
[1740114910250,1.03325324,98333.0,98332.0,7.10369743]
[1740114911966,1.01594768,98333.0,98332.0,7.10369743]
[1740114912864,1.01594768,98333.0,98332.0,7.33197743]
[1740114913264,1.01226275,98333.0,98332.0,8.03197743]
[1740114913568,0.5203074,98333.0,98332.0,8.53197743]
[1740114913706,0.56824886,98335.0,98334.0,0.33708185]
[1740114913914,0.52316829,98335.0,98334.0,5.44931754]
[1740114914211,0.52316829,98335.0,98334.0,6.14931754]
[1740114914367,0.52316829,98335.0,98334.0,7.64931754]
[1740114914830,0.45247028,98335.0,98334.0,7.64931754]
[1740114915153,0.45247028,98335.0,98334.0,7.65031754]
[1740114915591,0.4115716,98335.0,98334.0,7.65031754]
[1740114916212,0.3865716,98335.0,98334.0,7.65131754]
[1740114916439,0.3865716,98335.0,98334.0,7.65031754]
[1740114916570,0.3865716,98335.0,98334.0,7.65131754]
[1740114916978,0.3865716,98335.0,98334.0,7.65031754]
[1740114917407,0.3865716,98335.0,98334.0,7.67094911]
[1740114917806,0.3865716,98335.0,98334.0,7.67194911]
[1740114918011,0.3865716,98335.0,98334.0,2.66235911]
[1740114918207,0.3865716,98335.0,98334.0,7.67294911]
[1740114919037,0.3712916,98335.0,98334.0,7.11445911]
[1740114919795,0.3721423,98335.0,98334.0,7.11445911]
[1740114920008,0.3721423,98335.0,98334.0,7.61445911]
[1740114921349,0.37820496,98335.0,98334.0,7.61445911]
[1740114921546,0.37820496,98335.0,98334.0,5.61945911]
[1740114921725,0.37820496,98335.0,98334.0,4.82871826]
[1740114923172,0.37820496,98335.0,98334.0,4.86385052]
[1740114923736,0.37820496,98335.0,98334.0,4.89551711]
[1740114924155,0.37820496,98335.0,98334.0,4.87551711]
[1740114924360,0.37820496,98335.0,98334.0,4.89551711]
[1740114927794,0.37820496,98335.0,98334.0,5.39551711]
[1740114928435,0.37820496,98335.0,98334.0,5.39451711]
[1740114928579,0.37820496,98335.0,98334.0,3.72181711]
[1740114928783,0.37820496,98335.0,98334.0,8.73240711]
[1740114929243,0.3721423,98335.0,98334.0,8.73240711]
[1740114929461,0.3721423,98335.0,98334.0,8.73340711]
[1740114930073,0.3721423,98335.0,98334.0,8.73240711]
[1740114930565,0.3721423,98335.0,98334.0,8.73340711]
[1740114931427,0.3721423,98335.0,98334.0,8.73510851]
[1740114935264,0.34162374,98335.0,98334.0,8.73510851]
[1740114936244,0.09026011,98335.0,98334.0,8.7115171]
[1740114936457,0.05974155,98335.0,98334.0,8.7125171]
[1740114936646,0.05974155,98335.0,98334.0,8.7135171]
[1740114937405,0.05974155,98335.0,98334.0,8.7125171]
[1740114937629,0.05974155,98335.0,98334.0,8.7135171]
[1740114937826,0.03111155,98335.0,98334.0,8.7125171]
[1740114938033,0.03111155,98335.0,98334.0,8.7135171]
[1740114938239,0.01139155,98335.0,98334.0,8.7135171]
[1740114938796,2.03649853,98337.0,98336.0,0.37]
[1740114939014,2.03649853,98337.0,98336.0,1.35685028]
[1740114939209,2.03649853,98337.0,98336.0,1.37139113]
[1740114939413,2.04255602,98337.0,98336.0,6.38098113]
[1740114939787,2.04255602,98337.0,98336.0,7.88098113]
[1740114940132,2.01566602,98337.0,98336.0,7.88098113]
[1740114941118,2.01566602,98337.0,98336.0,7.88298113]
[1740114941556,1.95553602,98337.0,98336.0,7.88298113]
[1740114941778,1.83713917,98337.0,98336.0,7.88298113]
[1740114941981,0.13247859,98338.0,98337.0,0.44417685]
[1740114942186,2.24649699,98339.0,98338.0,0.44417585]
[1740114942398,0.89726635,98339.0,98338.0,5.55641154]
[1740114942542,1.0292,98340.0,98339.0,0.44417385]
[1740114942543,0.70001267,98340.0,98339.0,0.44417385]
[1740114942748,0.40493167,98340.0,98339.0,5.58807613]
[1740114942953,0.26749482,98340.0,98339.0,5.58807613]
[1740114943197,0.23697797,98340.0,98339.0,7.78807613]
[1740114943401,0.02711345,98340.0,98339.0,7.78807613]
[1740114943755,0.0008508,98383.0,98347.0,1.19164085]
[1740114944099,1.20120615,98341.0,98340.0,1.010475]
[1740114944331,1.1706952,98341.0,98340.0,8.1011016]
[1740114944536,1.14018425,98341.0,98340.0,9.7028145]
[1740114944688,1.10600036,98341.0,98340.0,9.7028145]
[1740114945096,1.07548941,98341.0,98340.0,9.7028145]
[1740114945303,1.04497846,98341.0,98340.0,9.7028145]
[1740114945501,1.01446751,98341.0,98340.0,9.7110145]
[1740114945684,0.98395656,98341.0,98340.0,9.7110145]
[1740114945890,0.98395656,98341.0,98340.0,9.8989408]
[1740114946091,0.95344561,98341.0,98340.0,9.87555535]
[1740114946340,0.92293466,98341.0,98340.0,10.37555535]
[1740114946541,0.85516035,98341.0,98340.0,10.37655535]
[1740114946693,0.85516035,98341.0,98340.0,10.39512783]
[1740114946915,0.8246494,98341.0,98340.0,10.37655535]
[1740114947119,0.79413845,98341.0,98340.0,10.38793882]
[1740114947325,0.7636275,98341.0,98340.0,10.38793882]
[1740114947565,0.72957145,98341.0,98340.0,10.38793882]
[1740114947767,0.72957145,98341.0,98340.0,10.49058451]
[1740114947994,0.6391105,98341.0,98340.0,10.49058451]
[1740114948146,0.60859955,98341.0,98340.0,11.35758451]
[1740114948363,0.5780886,98341.0,98340.0,11.35758451]
[1740114948679,0.42937765,98341.0,98340.0,11.35758451]
[1740114948925,0.3988667,98341.0,98340.0,11.35758451]
[1740114949128,0.2024867,98341.0,98340.0,11.35758451]
[1740114949261,0.1868699,98341.0,98340.0,11.35758451]
[1740114949668,0.0018412,98360.0,98347.0,0.31706185]
[1740114949914,0.0018412,98360.0,98347.0,0.45134245]
[1740114950126,0.0008508,98360.0,98347.0,0.46900287]
[1740114950324,0.0008508,98360.0,98347.0,0.47307287]
[1740114950495,0.0008508,98360.0,98347.0,6.98266287]
[1740114950714,0.0008508,98360.0,98347.0,6.95202796]
[1740114951103,0.0008508,98360.0,98347.0,6.95302796]
[1740114955381,0.0008508,98360.0,98347.0,6.96022796]
[1740114955917,0.0008508,98360.0,98347.0,6.96799864]
[1740114957429,0.0008508,98360.0,98347.0,6.99959984]
[1740114960669,0.0008508,98360.0,98347.0,6.83987884]
[1740114960872,0.0008508,98360.0,98347.0,7.22783984]
[1740114962903,0.0008508,98360.0,98347.0,2.21824984]
[1740114963251,0.0008508,98360.0,98347.0,7.22783984]
[1740114963455,0.0008508,98360.0,98347.0,7.33493984]
[1740114963832,0.0008508,98360.0,98347.0,7.22783984]
[1740114964966,0.0008508,98360.0,98347.0,7.22063984]
[1740114965189,0.0008508,98360.0,98347.0,7.22783984]
[1740114973441,0.0008508,98360.0,98347.0,2.21824984]
[1740114974053,0.0008508,98360.0,98347.0,7.22783984]
[1740114976236,0.083651,98357.0,98347.0,8.59274532]